bitfinex-derivatives/quotes_ETHF0:USTF0_20240927
["timestamp","ask_amount","ask_price","bid_price","bid_amount"]
[1727455938608,0.36768,2719.1,2718.2,18.367]
[1727455938920,0.36767,2719.2,2718.9,0.36769]
[1727455939415,0.36767,2719.1,2718.9,0.36769]
[1727455939716,4.72255,2719.3,2719.1,0.36767]
[1727455939929,4.72255,2719.3,2718.8,2.87]
[1727455940222,4.72255,2719.3,2718.9,1.141]
[1727455940422,4.3549,2719.3,2719.2,0.36766]
[1727455941818,0.36762,2719.5,2719.3,0.36764]
[1727455942021,3.57541,2719.6,2719.4,0.36763]
[1727455942322,3.2078,2719.6,2719.3,1.2184]
[1727455942520,3.2078,2719.6,2719.5,0.36762]
[1727455942723,0.3676,2719.7,2719.3,2.3714]
[1727455943020,1.1254,2719.8,2719.4,0.36763]
[1727455943021,0.36761,2719.6,2719.4,0.36763]
[1727455943222,0.36761,2719.6,2719.3,2.3714]
[1727455943223,0.36761,2719.6,2719.3,2.73904]
[1727455943925,0.36761,2719.6,2719.4,0.36763]
[1727455944314,0.3676,2719.7,2719.5,0.36761]
[1727455944717,1.1254,2719.8,2719.6,0.3676]
[1727455944919,1.1254,2719.8,2719.7,0.36759]
[1727455945118,4.3202,2719.9,2719.4,2.87]
[1727455945119,3.2078,2719.9,2719.4,2.87]
[1727455945327,0.36758,2719.8,2719.7,0.36758]
[1727455945520,3.57537,2719.9,2719.7,0.36758]
[1727455945720,3.2078,2719.9,2719.7,0.36758]
[1727455945918,3.57538,2719.9,2719.8,0.36758]
[1727455946127,5.5377,2720.3,2720.0,0.36754]
[1727455946319,0.36752,2720.2,2720.0,0.36754]
[1727455946525,0.36754,2720.1,2720.0,0.36754]
[1727455946719,3.57532,2720.3,2720.1,0.36753]
[1727455946918,0.36754,2720.1,2720.0,1.1702]
[1727455947222,0.36754,2720.1,2719.9,0.36755]
[1727455947429,0.36755,2720.0,2719.9,0.36755]
[1727455947624,0.36755,2720.0,2719.8,1.53777]
[1727455947819,0.36755,2720.0,2719.9,0.36756]
[1727455948026,0.36754,2720.1,2719.9,0.36756]
[1727455948230,4.4326,2720.3,2719.8,1.1702]
[1727455948427,0.36752,2720.3,2720.1,0.36753]
[1727455948629,0.3675,2720.4,2720.2,0.36752]
[1727455948929,1.1124,2720.6,2720.3,0.3675]
[1727455948930,0.36749,2720.5,2720.3,0.3675]
[1727455949127,4.4326,2720.7,2720.4,3.676]
[1727455949337,3.2078,2721.2,2720.6,2.87]
[1727455949645,3.2078,2721.2,2721.0,0.36741]
[1727455949832,3.2078,2721.2,2721.1,1.1542]
[1727455949833,0.36739,2721.2,2721.1,1.1542]
[1727455950035,1.1862,2721.6,2721.1,1.1542]
[1727455950224,1.1862,2721.6,2721.2,0.36738]
[1727455950225,3.2078,2721.4,2721.2,0.36738]
[1727455950420,0.36736,2721.4,2721.1,1.1542]
[1727455950624,1.1862,2721.6,2721.1,1.1542]
[1727455950828,0.36738,2721.3,2721.1,1.5216]
[1727455951227,0.36737,2721.4,2721.1,5.1968]
[1727455951428,0.36737,2721.4,2721.1,1.5216]
[1727455951627,1.1862,2721.6,2721.5,0.36735]
[1727455951932,3.2078,2721.7,2721.3,2.87]
[1727455952230,3.2078,2721.7,2721.2,3.6744]
[1727455952231,0.36729,2721.9,2721.7,0.36731]
[1727455952827,0.36732,2721.8,2721.6,2.87]
[1727455953022,0.36731,2721.8,2721.6,2.87]
[1727455953328,0.36732,2721.8,2721.4,2.87]
[1727455953534,0.36732,2721.8,2721.5,0.36734]
[1727455953928,0.3673,2721.9,2721.4,2.87]
[1727455954126,3.2078,2722.0,2721.4,2.87]
[1727455954433,3.57509,2722.0,2721.8,0.3673]
[1727455954732,0.36732,2721.8,2721.4,2.87]
[1727455954932,4.12603,2722.0,2721.4,0.36735]
[1727455955232,0.36733,2721.7,2721.5,0.36735]
[1727455955426,0.36733,2721.7,2721.4,0.36735]
[1727455956126,0.36733,2721.7,2721.4,3.23736]
[1727455956530,4.12603,2722.0,2721.4,3.23736]
[1727455956830,0.36733,2721.7,2721.4,3.23736]
[1727455957032,0.36734,2721.6,2721.4,3.23736]
[1727455957225,0.36734,2721.6,2721.4,2.87]
[1727455957425,4.12603,2722.0,2721.5,3.6744]
[1727455957721,2.87,2722.3,2721.2,5.5358]
[1727455957722,0.91817,2722.1,2721.6,3.2078]
[1727455957922,0.3673,2721.9,2721.7,3.23732]
[1727455958530,0.3673,2721.9,2721.7,2.87]
[1727455958732,0.3673,2721.9,2721.7,3.23732]
[1727455959238,0.91814,2722.2,2721.8,0.3673]
[1727455959832,3.2078,2722.3,2721.7,2.87]
[1727455960323,0.36727,2722.1,2721.9,0.36729]
[1727455960727,3.2078,2722.3,2721.8,0.3673]
[1727455960728,4.12592,2722.3,2721.8,0.3673]
[1727455960951,2.3245,2722.4,2721.5,0.36734]
[1727455960952,0.36732,2721.7,2721.5,0.36734]
[1727455961235,0.36731,2721.8,2721.6,0.36733]
[1727455961738,0.36732,2721.8,2721.5,0.36735]
[1727455961922,0.36732,2721.7,2721.5,0.36734]
[1727455962124,6.0778,2722.0,2721.2,3.57518]
[1727455962330,3.2078,2721.4,2721.0,0.36741]
[1727455962530,4.12621,2721.4,2720.9,2.60462]
[1727455962731,0.36741,2721.1,2720.9,2.60462]
[1727455962932,0.36741,2721.1,2720.9,2.2372]
[1727455963133,0.36742,2721.0,2720.9,1.1056]
[1727455963439,0.91844,2721.3,2720.5,2.87]
[1727455963440,3.2078,2721.1,2720.5,2.87]
[1727455963730,0.36744,2720.8,2720.5,3.23747]
[1727455963933,0.36744,2720.8,2720.6,0.36747]
[1727455964129,0.36745,2720.8,2720.5,3.23748]
[1727455964632,0.36745,2720.8,2720.5,3.23747]
[1727455965330,0.36746,2720.7,2720.5,2.87]
[1727455965740,3.2078,2721.4,2720.6,3.676]
[1727455965936,0.36738,2721.3,2721.0,0.36741]
[1727455966436,0.36739,2721.2,2720.9,0.36742]
[1727455966632,0.36739,2721.2,2721.0,0.36741]
[1727455966931,3.2078,2721.4,2721.0,0.36741]
[1727455967137,0.36739,2721.2,2721.0,0.36741]
[1727455967929,0.3674,2721.1,2720.9,0.36742]
[1727455969435,0.3674,2721.1,2720.8,3.23743]
[1727455970036,0.36742,2721.0,2720.8,2.87]
[1727455970229,0.91849,2721.2,2720.7,3.2078]
[1727455970429,0.36744,2720.8,2720.5,0.36748]
[1727455970735,0.3675,2720.4,2720.3,3.2078]
[1727455970935,3.2078,2720.4,2720.0,2.87]
[1727455971235,0.91873,2720.5,2719.7,1.50059]
[1727455971236,0.36757,2719.9,2719.7,1.50059]
[1727455971636,0.36757,2719.9,2719.7,4.37059]
[1727455971939,0.36757,2719.9,2719.2,2.13703]
[1727455971940,0.36759,2719.7,2719.2,7.2957]
[1727455972141,0.3676,2719.6,2719.4,3.23763]
[1727455972330,0.3676,2719.6,2719.4,0.36763]
[1727455972641,0.91902,2719.6,2718.7,3.2078]
[1727455972837,4.991,2720.0,2718.6,0.36773]
[1727455972838,0.3677,2719.0,2718.6,0.36773]
[1727455973330,0.3677,2719.0,2718.7,0.36772]
[1727455973526,0.3677,2719.0,2718.6,0.36773]
[1727455973729,0.3677,2719.0,2718.7,0.36772]
[1727455973936,0.3677,2719.0,2718.6,0.36773]
[1727455974140,0.3677,2719.0,2718.7,0.36772]
[1727455975728,0.3677,2719.0,2718.5,3.53]
[1727455975729,1.1184,2719.3,2718.5,3.53]
[1727455975934,0.36772,2718.8,2718.5,3.89775]
[1727455976135,0.36771,2718.9,2718.5,3.89775]
[1727455976335,0.36769,2719.0,2718.7,0.36772]
[1727455976537,0.3677,2718.9,2718.6,0.36773]
[1727455976741,0.36769,2719.0,2718.6,0.36773]
[1727455977035,0.3677,2718.9,2718.6,0.36773]
[1727455977346,0.36769,2719.0,2718.7,0.36773]
[1727455977844,0.3677,2718.9,2718.6,0.36774]
[1727455978348,0.36769,2719.0,2718.6,0.36774]
[1727455978848,3.2078,2718.8,2718.1,3.2078]
[1727455979038,0.36775,2718.6,2718.2,0.36779]
[1727455979236,0.36772,2718.8,2718.1,3.2078]
[1727455979436,0.36773,2718.7,2718.4,0.36776]
[1727455980138,0.3677,2718.9,2718.6,0.36774]
[1727455980343,0.36771,2718.8,2718.1,6.7378]
[1727455980535,0.36771,2718.8,2718.4,0.36776]
[1727455980741,0.36771,2718.9,2718.5,0.36775]
[1727455981340,3.2078,2719.0,2718.1,6.7378]
[1727455981341,0.36773,2718.7,2718.1,6.7378]
[1727455981543,0.36776,2718.5,2718.2,0.36779]
[1727455982045,0.91929,2718.8,2718.3,0.36777]
[1727455982242,0.36769,2719.0,2718.7,0.36772]
[1727455982440,0.36771,2718.9,2718.6,0.36773]
[1727455982646,0.36771,2718.9,2718.7,3.2078]
[1727455982838,0.36771,2718.9,2718.6,0.36774]
[1727455983037,0.36771,2718.9,2718.7,0.36772]
[1727455983547,0.36771,2718.9,2718.6,0.36774]
[1727455983743,0.36769,2719.0,2718.7,0.36773]
[1727455983938,0.36768,2719.1,2718.8,0.36771]
[1727455984140,4.12694,2719.3,2718.8,0.36771]
[1727455984141,0.36769,2719.0,2718.8,0.36771]
[1727455984638,3.66965408,2719.6,2718.9,7.80463]
[1727455984639,0.36761,2719.6,2718.9,7.80463]
[1727455984838,0.3676,2719.7,2719.1,3.53]
[1727455985247,3.5754,2719.7,2719.5,0.36761]
[1727455985541,0.36758,2719.8,2719.6,0.3676]
[1727455985743,5.5348,2720.0,2719.2,1.1298]
[1727455985939,5.5348,2720.0,2719.4,0.36762]
[1727455985940,0.3676,2719.6,2719.4,0.36762]
[1727455986647,0.36763,2719.5,2719.3,0.36764]
[1727455986849,3.2078,2719.7,2719.0,1.2022]
[1727455986850,0.91902,2719.6,2719.0,1.2022]
[1727455987145,0.36768,2719.1,2718.9,3.57549]
[1727455987345,4.12691,2719.4,2718.9,3.57549]
[1727455987547,0.36768,2719.1,2718.9,3.57549]
[1727455987746,0.36768,2719.1,2718.9,3.2078]
[1727455987948,0.36768,2719.1,2718.9,3.5755]
[1727455988547,0.36767,2719.2,2718.9,3.5755]
[1727455988748,0.91907,2719.5,2718.9,3.2078]
[1727455988957,0.36766,2719.3,2719.0,0.36768]
[1727455989350,3.2078,2719.4,2719.0,0.36768]
[1727455989543,0.36766,2719.2,2718.9,3.57549]
[1727455989854,0.36769,2719.0,2718.7,3.89772]
[1727455990159,0.36769,2719.0,2718.7,0.36772]
[1727455991348,0.3677,2718.9,2718.7,0.36772]
[1727455991537,0.91915,2719.2,2718.7,0.36772]
[1727455991738,0.3677,2718.9,2718.6,3.2078]
[1727455992144,0.3677,2718.9,2718.7,0.36772]
[1727455992340,0.36766,2719.2,2718.6,4.12714]
[1727455992544,0.36764,2719.4,2719.1,0.36767]
[1727455992946,0.36764,2719.4,2719.2,0.36766]
[1727455993653,0.36765,2719.3,2719.1,0.36767]
[1727455994051,3.2078,2719.6,2718.7,4.44929]
[1727455994250,0.36762,2719.5,2719.3,0.36764]
[1727455994459,1.1755,2720.0,2719.0,4.6675]
[1727455994460,5.3022,2720.0,2719.0,4.6675]
[1727455994656,5.3022,2720.0,2719.2,3.2078]
[1727455994956,0.36759,2719.8,2719.5,0.36761]
[1727455995156,0.36759,2719.8,2719.6,0.3676]
[1727455995353,5.3022,2720.0,2719.6,0.3676]
[1727455995354,3.2078,2720.0,2719.9,0.36756]
[1727455995665,3.2078,2720.3,2720.0,0.36755]
[1727455995853,0.36754,2720.1,2719.9,0.36755]
[1727455996247,0.91885,2720.1,2719.7,0.36759]
[1727455996450,0.36758,2719.8,2719.6,0.36759]
[1727455996652,3.2078,2720.0,2719.3,4.7223]
[1727455996962,3.2078,2720.0,2719.6,0.36759]
[1727455997148,0.36758,2719.8,2719.6,0.36759]
[1727455997665,0.36757,2719.9,2719.6,0.36759]
[1727455997856,3.2078,2720.0,2719.6,0.36759]
[1727455998176,0.36757,2719.9,2719.7,0.36759]
[1727455998464,3.2078,2720.3,2719.7,3.53]
[1727455998656,3.57532,2720.3,2720.1,0.36753]
[1727455998953,3.57531,2720.4,2720.2,0.36752]
[1727455999347,0.36751,2720.3,2720.1,0.36753]
[1727455999853,0.36753,2720.2,2720.0,0.36754]
[1727456000059,3.2078,2720.4,2720.1,0.36754]
[1727456000060,0.36752,2720.3,2720.1,0.36754]
[1727456000255,0.36752,2720.3,2720.2,0.36752]
[1727456000953,0.36752,2720.3,2719.8,0.91894]
[1727456000954,0.36752,2720.3,2720.1,0.36753]
[1727456001161,3.2078,2720.7,2720.2,3.676]
[1727456001351,1.189,2720.8,2720.3,5.62818]
[1727456001556,0.36743,2720.9,2720.7,0.36746]
[1727456001861,0.36745,2720.8,2720.3,6.76938]
[1727456002555,3.2078,2721.1,2720.4,0.91875]
[1727456002760,0.36744,2720.9,2720.4,0.91875]
[1727456003055,4.12633,2721.1,2720.4,0.91875]
[1727456003256,4.12633,2721.1,2720.8,0.36744]
[1727456003456,0.36742,2721.0,2720.8,0.36744]
[1727456003859,3.2078,2721.1,2720.9,0.36743]
[1727456004056,0.36742,2721.0,2720.8,0.36743]
[1727456004657,0.36742,2721.0,2720.7,3.53]
[1727456004858,0.36742,2721.0,2720.8,0.36744]
[1727456005057,3.57521,2721.1,2720.9,0.36742]
[1727456005257,3.57521,2721.1,2720.7,3.53]
[1727456005258,3.2078,2721.1,2721.0,0.36742]
[1727456006858,3.2078,2721.1,2720.7,3.53]
[1727456007060,0.36742,2721.0,2720.8,0.36744]
[1727456007461,0.36737,2721.4,2721.2,0.36738]
[1727456008653,0.36737,2721.4,2720.8,4.1264]
[1727456008854,0.36737,2721.3,2721.2,0.36738]
[1727456009069,0.36738,2721.3,2721.1,0.36739]
[1727456009259,0.36738,2721.3,2721.2,0.36739]
[1727456009762,0.36739,2721.2,2721.1,0.36739]
[1727456009968,0.36739,2721.2,2721.1,0.3674]
[1727456010664,0.3674,2721.1,2721.0,2.87]
[1727456010877,0.36742,2721.0,2720.9,0.36742]
[1727456011166,0.36742,2721.0,2720.8,3.23744]
[1727456011378,0.36741,2721.1,2720.8,2.87]
[1727456011563,0.36741,2721.1,2721.0,2.87]
[1727456012368,3.5752,2721.2,2721.0,3.23742]
[1727456012670,0.36748,2720.6,2720.4,3.57529]
[1727456012861,0.36746,2720.7,2720.5,0.36747]
[1727456013365,0.91861,2720.8,2720.4,6.0778]
[1727456013565,0.36748,2720.5,2720.4,2.87]
[1727456013773,0.36747,2720.6,2720.4,3.23749]
[1727456014271,0.36748,2720.6,2720.4,3.23749]
[1727456014568,4.12645,2720.7,2719.9,2.87]
[1727456014769,0.36753,2720.2,2720.0,0.36754]
[1727456015566,0.36754,2720.1,2719.9,3.23755]
[1727456016263,0.36755,2720.0,2719.9,2.87]
[1727456016465,1.1173,2720.4,2719.9,2.87]
[1727456016466,0.3675,2720.4,2719.9,3.78892]
[1727456016670,0.3675,2720.4,2720.2,3.23751]
[1727456017367,0.36749,2720.5,2720.3,0.3675]
[1727456017868,0.36749,2720.5,2720.4,0.3675]
[1727456019465,4.69165,2720.8,2720.7,0.36746]
[1727456019665,1.48385,2720.8,2720.7,3.23746]
[1727456020366,1.1164,2720.8,2720.7,3.23746]
[1727456020574,1.48384,2720.8,2720.7,3.23746]
[1727456020767,1.1164,2720.8,2720.7,3.23746]
[1727456020971,0.36744,2720.9,2720.8,0.36744]
[1727456021170,0.36744,2720.8,2720.7,3.23745]
[1727456021982,0.36744,2720.8,2720.7,2.87]
[1727456022171,0.36744,2720.8,2720.7,3.23746]
[1727456022473,0.36744,2720.8,2720.7,2.87]
[1727456023364,0.36748,2720.6,2720.4,3.23749]
[1727456024166,0.36748,2720.6,2720.4,2.87]
[1727456024668,0.91869,2720.6,2720.3,2.275]
[1727456024873,0.3675,2720.4,2720.3,2.275]
[1727456025464,1.1869,2720.6,2720.3,2.275]
[1727456025675,0.3675,2720.4,2720.3,2.275]
[1727456026074,0.36749,2720.5,2720.3,2.275]
[1727456026462,0.36749,2720.5,2720.3,2.64251]
[1727456026666,2.1056,2720.6,2720.2,2.87]
[1727456026867,0.36751,2720.3,2720.2,2.87]
[1727456027271,0.3675,2720.4,2720.2,2.87]
[1727456027470,0.36754,2720.1,2719.9,4.35476]
[1727456027669,0.36753,2720.2,2720.0,0.36755]
[1727456028080,1.59522,2720.3,2720.0,0.36755]
[1727456028290,0.36752,2720.2,2720.0,0.36755]
[1727456028474,1.59522,2720.3,2720.0,0.36755]
[1727456029177,1.59522,2720.3,2720.1,3.23754]
[1727456029373,1.1869,2720.6,2720.1,6.0778]
[1727456029583,0.36749,2720.5,2720.3,2.87]
[1727456029779,0.3675,2720.4,2720.3,2.87]
[1727456030778,0.36749,2720.5,2720.3,3.23751]
[1727456031986,0.3675,2720.4,2720.2,0.36751]
[1727456032181,0.3675,2720.4,2720.3,2.87]
[1727456032874,3.2078,2721.3,2721.2,0.36739]
[1727456033079,3.2078,2721.3,2721.2,3.23739]
[1727456033379,3.2078,2721.3,2721.2,2.87]
[1727456033380,3.57517,2721.3,2721.2,2.87]
[1727456033688,0.36739,2721.2,2721.1,0.36739]
[1727456034086,0.3674,2721.1,2721.0,3.23741]
[1727456034385,0.3674,2721.2,2721.1,0.3674]
[1727456036485,0.3674,2721.1,2721.0,2.87]
[1727456036688,0.36742,2721.0,2720.9,0.36742]
[1727456036992,0.36742,2721.0,2720.9,0.36743]
[1727456037290,0.36742,2721.0,2720.9,10.04263]
[1727456037490,3.2078,2721.6,2721.0,0.91854]
[1727456037787,3.2078,2721.6,2721.5,0.36735]
[1727456037990,3.57513,2721.6,2721.5,0.36735]
[1727456038588,0.36737,2721.4,2721.3,0.36737]
[1727456038787,0.36739,2721.3,2721.1,1.124]
[1727456038993,0.36739,2721.3,2721.2,0.36739]
[1727456041393,0.36739,2721.2,2721.1,1.124]
[1727456041594,0.36739,2721.2,2721.1,0.3674]
[1727456042293,0.36738,2721.3,2721.2,0.36738]
[1727456042594,1.1535,2721.5,2721.0,1.1549]
[1727456042792,0.36746,2720.7,2720.6,0.93566698]
[1727456043296,0.36745,2720.8,2720.6,0.93566698]
[1727456043489,0.36745,2720.8,2720.7,0.36745]
[1727456043687,0.36746,2720.7,2720.6,1.30312698]
[1727456045692,0.36746,2720.7,2720.6,0.93566698]
[1727456045891,15.08776,2720.7,2720.6,0.93566698]
[1727456046097,2.20483,2720.6,2720.5,1.40350047]
[1727456046289,5.88083,2720.6,2720.5,1.40350047]
[1727456046491,0.36752,2720.2,2720.1,0.36753]
[1727456047096,0.36753,2720.2,2720.1,0.36752]
[1727456047891,0.36753,2720.2,2720.0,3.23754]
[1727456049298,0.36753,2720.2,2720.1,0.36754]
[1727456049893,4.4152,2720.4,2720.1,0.36754]
[1727456050094,0.36751,2720.3,2720.1,0.36754]
[1727456050400,4.7827,2720.4,2720.0,2.87]
[1727456050587,3.2078,2720.4,2720.3,0.36751]
[1727456051198,0.36749,2720.5,2720.3,0.36751]
[1727456051902,0.3675,2720.4,2720.3,0.36751]
[1727456053200,0.36749,2720.5,2720.4,0.36749]
[1727456056299,0.3675,2720.4,2720.3,0.3675]
[1727456058307,0.3675,2720.4,2720.3,4.0435]
[1727456058607,0.3675,2720.4,2720.3,5.192]
[1727456058803,0.36747,2720.6,2720.5,0.36746]
[1727456059103,5.34574,2720.8,2720.6,0.36746]
[1727456059104,0.36746,2720.7,2720.6,0.36746]
[1727456060600,0.36748,2720.6,2720.5,0.36747]
[1727456060801,0.3675,2720.5,2720.4,0.36749]
[1727456061199,0.3675,2720.5,2720.4,4.04349]
[1727456061611,0.3675,2720.5,2720.4,0.36749]
[1727456061907,0.3675,2720.4,2720.3,1.1485]
[1727456062112,0.3675,2720.4,2720.3,0.36751]
[1727456062502,0.36752,2720.3,2720.2,0.36751]
[1727456062710,0.3675,2720.5,2720.1,0.36752]
[1727456062711,0.36754,2720.2,2720.1,0.36752]
[1727456062911,4.12647,2720.7,2720.0,7.7583]
[1727456063211,0.36748,2720.6,2720.5,0.36747]
[1727456064809,0.36748,2720.6,2720.2,3.78882]
[1727456064810,0.3675,2720.5,2720.4,0.36749]
[1727456065200,0.36751,2720.4,2720.3,0.3675]
[1727456065511,0.36754,2720.2,2720.1,0.36752]
[1727456065921,0.36749,2720.5,2720.4,0.36748]
[1727456067106,0.36749,2720.5,2720.4,4.04348]
[1727456067915,0.36746,2720.7,2720.6,0.36746]
[1727456068311,0.91852,2721.1,2720.6,4.59388]
[1727456068610,0.36743,2721.0,2720.9,0.36742]
[1727456068814,0.91851,2721.1,2720.7,2.3644]
[1727456069007,0.36744,2720.8,2720.7,2.3644]
[1727456069209,0.36744,2720.8,2720.7,2.73186]
[1727456069408,0.36744,2720.8,2720.7,2.3644]
[1727456070012,0.36742,2721.1,2721.0,0.36741]
[1727456070208,0.36743,2720.9,2720.8,0.36744]
[1727456070413,0.36744,2720.8,2720.7,2.73185]
[1727456070815,0.36744,2720.8,2720.7,2.73186]
[1727456071510,0.36744,2720.9,2720.8,0.36744]
[1727456071710,0.36744,2720.8,2720.7,1.22]
[1727456071914,0.36744,2720.8,2720.7,0.36746]
[1727456073313,4.12632,2721.1,2720.6,3.23746]
[1727456073314,0.36746,2720.7,2720.6,3.23746]
[1727456073708,0.36746,2720.7,2720.5,3.2078]
[1727456073709,0.36747,2720.6,2720.5,3.2078]
[1727456074114,0.36747,2720.6,2720.5,6.8838]
[1727456074917,0.36747,2720.6,2720.5,7.25128]
[1727456076712,1.1093,2721.0,2720.5,9.7538]
[1727456077026,0.36743,2721.0,2720.9,0.36742]
[1727456079623,3.57521,2721.1,2721.0,0.36742]
[1727456079920,3.2078,2721.1,2721.0,6.91262]
[1727456080125,0.36734,2721.6,2721.5,0.36735]
[1727456081123,1.28573,2721.5,2721.4,3.23736]
[1727456081625,0.36736,2721.4,2721.3,0.36736]
[1727456082018,0.36736,2721.4,2721.3,0.36737]
[1727456082617,0.36736,2721.4,2721.3,4.04177]
[1727456082822,0.36736,2721.4,2721.2,0.36738]
[1727456082823,0.36739,2721.3,2721.2,0.36738]
[1727456088119,0.36739,2721.3,2721.0,1.2026]
[1727456088120,0.3674,2721.1,2721.0,1.2026]
[1727456089337,0.3674,2721.1,2721.0,4.8778]
[1727456089525,0.3674,2721.1,2721.0,5.24522]
[1727456090131,0.36739,2721.3,2721.2,0.36737]
[1727456090331,0.36738,2721.4,2721.3,0.36736]
[1727456090829,0.36727,2722.1,2722.0,0.36728]
[1727456091033,0.36724,2722.3,2722.2,3.23725]
[1727456091332,3.2078,2722.5,2722.3,0.36723]
[1727456091534,3.2078,2722.5,2722.4,6.5436]
[1727456091720,3.57501,2722.5,2722.4,1.166]
[1727456091926,3.57502,2722.5,2722.3,1.1334]
[1727456092229,3.2078,2722.5,2721.9,3.2078]
[1727456092529,0.36728,2722.0,2721.6,0.36733]
[1727456092721,1.50269,2721.9,2721.5,7.2112]
[1727456092926,2.68589,2721.9,2721.5,7.2112]
[1727456093124,2.3186,2721.9,2721.5,3.2078]
[1727456093334,3.2078,2721.7,2721.1,4.4218]
[1727456093546,3.2078,2721.7,2720.7,6.1638]
[1727456093547,3.2078,2721.4,2720.7,6.1638]
[1727456093827,1.136,2721.3,2720.9,3.23742]
[1727456094032,2.3192,2721.3,2720.9,3.23742]
[1727456094424,2.3192,2721.3,2720.9,3.23743]
[1727456094628,2.3192,2721.3,2720.5,2.3238]
[1727456094629,3.2078,2721.1,2720.5,5.1938]
[1727456094932,3.2078,2721.1,2720.5,4.084]
[1727456095234,3.57521,2721.1,2720.6,0.36747]
[1727456095432,3.2078,2721.1,2720.5,4.084]
[1727456095626,3.57521,2721.1,2720.6,0.36746]
[1727456095821,0.36742,2721.0,2720.6,0.36746]
[1727456096036,3.57521,2721.1,2720.7,0.36745]
[1727456096240,3.57521,2721.1,2720.6,0.36746]
[1727456096733,0.36742,2721.0,2720.6,0.36746]
[1727456097630,3.2078,2721.1,2720.5,4.084]
[1727456097937,3.5322,2721.3,2720.8,0.36744]
[1727456097938,0.36739,2721.2,2720.8,0.36744]
[1727456098235,0.36739,2721.2,2720.7,2.87]
[1727456098439,0.36739,2721.2,2720.8,0.36744]
[1727456099332,0.3674,2721.1,2720.8,0.36744]
[1727456100433,3.4837,2721.3,2720.7,2.87]
[1727456100636,0.36739,2721.2,2721.0,0.36741]
[1727456100828,0.36739,2721.2,2720.9,0.36742]
[1727456101234,0.3674,2721.2,2720.9,0.36742]
[1727456101434,3.4837,2721.3,2720.9,0.36742]
[1727456101631,3.4837,2721.3,2721.0,0.36742]
[1727456101824,3.2078,2721.5,2720.9,2.87]
[1727456102032,1.1303,2721.4,2720.9,2.87]
[1727456102229,1.1303,2721.4,2721.3,0.36737]
[1727456102435,3.2078,2721.5,2721.4,0.36736]
[1727456102635,1.0931,2721.8,2721.7,0.36732]
[1727456102830,1.0931,2721.8,2721.4,2.87]
[1727456103034,2.61611,2721.8,2721.6,0.36733]
[1727456103438,2.61612,2721.8,2721.6,0.36733]
[1727456103942,2.61611,2721.8,2721.6,0.36733]
[1727456104135,2.2488,2721.8,2721.7,0.36732]
[1727456104844,2.61611,2721.8,2721.7,0.36732]
[1727456105049,2.2488,2721.8,2721.7,0.36732]
[1727456105237,2.2488,2721.8,2721.4,2.87]
[1727456105238,2.61611,2721.8,2721.6,0.36733]
[1727456105536,0.36729,2722.0,2721.7,0.36732]
[1727456105745,6.48982,2722.3,2721.7,2.87]
[1727456105947,0.36729,2722.0,2721.8,1.0973]
[1727456106236,4.31,2722.6,2721.8,1.0973]
[1727456106237,3.2078,2722.6,2722.2,0.36725]
[1727456106437,3.2078,2722.6,2722.3,1.202]
[1727456106640,3.2078,2722.6,2721.9,1.49249]
[1727456106641,0.36725,2722.2,2721.9,1.49249]
[1727456106834,0.36725,2722.3,2722.1,0.36727]
[1727456107035,0.36724,2722.3,2722.1,0.36727]
[1727456107235,0.36724,2722.3,2722.0,0.36727]
[1727456107443,3.57503,2722.4,2722.1,0.36726]
[1727456107941,0.36724,2722.3,2722.1,0.36726]
[1727456108234,3.2078,2722.4,2722.1,0.36726]
[1727456108439,3.2078,2722.4,2722.0,3.23728]
[1727456108642,0.36725,2722.3,2722.0,0.36728]
[1727456108941,3.2078,2722.4,2722.0,0.36728]
[1727456109138,3.2078,2722.4,2722.1,0.36726]
[1727456109343,3.2078,2722.4,2722.0,2.87]
[1727456109643,0.36725,2722.3,2722.1,0.36726]
[1727456109841,3.2078,2722.4,2722.1,0.36726]
[1727456109842,3.57503,2722.4,2722.1,0.36726]
[1727456110043,3.2078,2722.4,2722.3,0.36724]
[1727456110336,0.91786,2723.1,2722.4,0.36722]
[1727456110337,0.3672,2722.6,2722.4,0.36722]
[1727456110543,3.57499,2722.7,2722.2,3.9587]
[1727456110739,0.3672,2722.6,2722.4,0.36721]
[1727456111042,4.12577,2722.7,2722.2,1.0887]
[1727456111343,0.36721,2722.6,2722.4,0.36722]
[1727456111645,3.2078,2722.7,2722.2,3.9587]
[1727456111942,0.36723,2722.4,2722.2,4.32595]
[1727456112145,0.36722,2722.5,2722.3,0.36724]
[1727456112637,3.6736,2722.4,2721.9,1.0973]
[1727456112839,0.36731,2721.8,2721.6,1.55193]
[1727456113043,0.3673,2721.9,2721.7,0.36731]
[1727456113641,0.91805,2722.5,2721.8,6.5444]
[1727456113840,0.36725,2722.3,2722.1,0.36727]
[1727456114041,3.2078,2722.6,2722.2,0.36725]
[1727456114246,0.36724,2722.3,2722.2,0.36725]
[1727456114440,0.91804,2722.5,2722.1,1.49286]
[1727456114636,6.0778,2722.6,2721.5,2.956]
[1727456114843,3.3793,2722.8,2721.7,1.1683]
[1727456114844,0.36732,2721.8,2721.7,1.1683]
[1727456115543,0.36732,2721.7,2721.6,1.55193]